bitfinex/quotes_SOLUSD_20220228
["timestamp","ask_amount","ask_price","bid_price","bid_amount"]
[1646024222700,1.43705574,86.518,86.472,22.5209]
[1646024222899,10.624,86.517,86.472,22.5209]
[1646024223501,10.624,86.517,86.453,23.747]
[1646024223800,1.78445567,86.509,86.453,23.747]
[1646024224003,10.625,86.508,86.453,23.747]
[1646024224601,10.625,86.508,86.441,24.5265]
[1646024224602,32.01554236,86.507,86.441,24.5265]
[1646024224802,17.3586,86.5,86.441,24.5265]
[1646024225001,10.625,86.499,86.441,24.5265]
[1646024225400,126.225,86.499,86.413,22.7746]
[1646024225600,126.225,86.499,86.414,30.2688]
[1646024225601,4.37355007,86.498,86.414,30.2688]
[1646024225803,10.626,86.497,86.414,30.2688]
[1646024226002,17.3617,86.49,86.414,30.2688]
[1646024226205,42.48788899,86.489,86.414,30.2688]
[1646024226404,35.13164559,86.489,86.414,30.2688]
[1646024226803,11.72684559,86.489,86.416,2.4384428]
[1646024227004,11.72684559,86.489,86.417,6.0]
[1646024227204,11.72684559,86.489,86.417,29.64844377]
[1646024227404,11.72684559,86.489,86.418,2.34406724]
[1646024227608,11.72684559,86.489,86.42,17.3595]
[1646024227805,11.72684559,86.489,86.421,6.0]
[1646024228006,11.72684559,86.489,86.422,115.6]
[1646024228212,11.72684559,86.489,86.423,124.71249629]
[1646024228405,11.72684559,86.489,86.424,8.38790062]
[1646024228606,11.72684559,86.489,86.426,46.90920133]
[1646024228807,11.72684559,86.489,86.427,6.0]
[1646024229006,11.72684559,86.489,86.427,8.99743405]
[1646024229606,11.72684559,86.489,86.43,17.3569]
[1646024229809,11.72684559,86.489,86.431,6.0]
[1646024233312,23.4342,86.509,86.441,115.6]
[1646024233609,23.4342,86.509,86.44,17.3554]
[1646024233610,4.625,86.526,86.444,2.63060022]
[1646024233809,24.5663,86.547,86.446,115.6]
[1646024233810,4.625,86.546,86.446,115.6]
[1646024234010,6.0,86.545,86.451,115.6]
[1646024234211,4.624,86.544,86.452,124.62127821]
[1646024234413,6.0,86.543,86.453,51.71426826]
[1646024234611,17.3505,86.54,86.46,17.3506]
[1646024234811,10.624,86.539,86.461,6.0]
[1646024235011,6.0,86.539,86.461,6.0]
[1646024236115,17.3525,86.53,86.461,6.0]
[1646024236314,3.85772468,86.528,86.455,6.0]
[1646024236515,10.624,86.527,86.455,6.0]
[1646024236717,24.9975,86.526,86.454,23.0144]
[1646024236920,10.624,86.525,86.454,23.0144]
[1646024237119,10.624,86.525,86.455,6.0]
[1646024237519,17.3543,86.52,86.455,6.0]
[1646024238519,6.0,86.525,86.455,6.0]
[1646024238720,24.9975,86.526,86.46,17.3519]
[1646024238922,24.9975,86.526,86.461,6.0]
[1646024239324,24.9975,86.526,86.462,115.6]
[1646024239523,24.9975,86.526,86.463,6.0]
[1646024240121,24.9975,86.526,86.47,17.3499]
[1646024240322,24.9975,86.526,86.472,53.9717628]
[1646024240521,3.85772468,86.528,86.473,6.0]
[1646024241425,3.85772468,86.528,86.472,53.9717628]
[1646024242024,6.0,86.527,86.472,53.9717628]
[1646024242624,3.85772468,86.528,86.472,53.9717628]
[1646024243226,3.85772468,86.528,86.473,6.0]
[1646024243826,3.85772468,86.528,86.48,17.3474]
[1646024244127,3.85772468,86.528,86.481,6.0]
[1646024245827,23.7993,86.539,86.482,115.6]
[1646024246028,24.5663,86.547,86.49,17.3455]
[1646024246229,24.5663,86.547,86.484,118.07977118]
[1646024246230,24.5663,86.547,86.491,121.6]
[1646024246428,24.5663,86.547,86.491,6.0]
[1646024246630,1.61523749,86.575,86.491,6.0]
[1646024246827,33.43946508,86.574,86.492,45.07003505]
[1646024247030,1.40498591,86.573,86.493,6.0]
[1646024247829,6.0,86.572,86.493,6.0]
[1646024248328,6.0,86.573,86.493,6.0]
[1646024248530,17.3442,86.57,86.5,17.343]
[1646024248830,6.0,86.569,86.501,6.0]
[1646024249231,7.63621378,86.569,86.502,24.9624]
[1646024249433,4.622,86.568,86.502,24.9624]
[1646024249656,7.81907821,86.567,86.502,24.9624]
[1646024249854,4.622,86.566,86.502,24.9624]
[1646024250055,6.0,86.565,86.502,24.9624]
[1646024250255,11.67015836,86.559,86.502,24.9624]
[1646024250456,12.33670615,86.558,86.502,24.9624]
[1646024250856,10.622,86.558,86.502,24.9624]
[1646024251356,6.0,86.558,86.502,24.9624]
[1646024251558,10.30292287,86.559,86.502,24.9624]
[1646024252358,6.0,86.558,86.502,24.9624]
[1646024254159,4.622,86.557,86.502,24.9624]
[1646024254361,6.0,86.556,86.502,24.9624]
[1646024254563,4.622,86.555,86.502,24.9624]
[1646024254762,6.0,86.554,86.502,24.9624]
[1646024255460,6.0,86.557,86.502,24.9624]
[1646024255661,4.622,86.556,86.502,24.9624]
[1646024255862,6.0,86.555,86.502,24.9624]
[1646024256462,6.0,86.557,86.502,24.9624]
[1646024256663,4.622,86.556,86.502,24.9624]
[1646024256864,6.0,86.555,86.502,24.9624]
[1646024257265,6.0,86.557,86.502,24.9624]
[1646024257463,10.30292287,86.559,86.502,24.9624]
[1646024257863,10.30292287,86.559,86.503,6.0]
[1646024261464,10.30292287,86.559,86.511,55.16642712]
[1646024261664,4.622,86.599,86.513,115.6]
[1646024261864,23.3015,86.602,86.515,118.53192375]
[1646024262068,23.3015,86.602,86.52,14.05]
[1646024262266,30.0778,86.638,86.522,2.54259718]
[1646024262267,1.81660711,86.635,86.522,2.54259718]
[1646024262569,33.75443802,86.629,86.542,47.44118493]
[1646024262767,7.51026614,86.628,86.543,28.6877]
[1646024263370,23.7798,86.627,86.543,28.6877]
[1646024263568,6.0,86.626,86.55,17.3326]
[1646024263769,6.0,86.626,86.551,6.0]
[1646024265570,4.619,86.625,86.551,6.0]
[1646024265771,1.55922698,86.619,86.551,6.0]
[1646024265971,10.619,86.618,86.543,22.6877]
[1646024266172,1.67669482,86.617,86.543,22.6877]
[1646024266370,1.39878755,86.615,86.543,22.6877]
[1646024266571,1.75141167,86.613,86.543,22.6877]
[1646024266871,13.55342591,86.611,86.543,22.6877]
[1646024267071,12.32474273,86.61,86.543,22.6877]
[1646024267270,1.54952072,86.609,86.543,22.6877]
[1646024267574,10.62,86.608,86.543,22.6877]
[1646024269275,10.62,86.608,86.544,53.23994009]
[1646024269475,10.62,86.608,86.545,6.0]
[1646024270077,10.62,86.608,86.544,53.23994009]
[1646024270275,6.0,86.608,86.544,53.23994009]
[1646024272374,17.3383,86.6,86.544,53.23994009]
[1646024272577,7.65904483,86.599,86.544,53.23994009]
[1646024272775,31.89187582,86.598,86.544,53.23994009]
[1646024272975,7.67500211,86.597,86.544,53.23994009]
[1646024273576,1.67500211,86.597,86.544,53.23994009]
[1646024274175,1.67500211,86.597,86.53,17.3379]
[1646024274575,6.0,86.596,86.53,17.3379]
[1646024274981,7.58923501,86.596,86.53,17.3379]
[1646024275180,7.58923501,86.596,86.531,53.33205661]
[1646024275378,6.0,86.596,86.532,6.0]
[1646024275580,6.0,86.596,86.533,24.1354]
[1646024275777,31.89187582,86.598,86.534,6.0]
[1646024275978,31.89187582,86.598,86.54,17.3361]
[1646024276177,31.89187582,86.598,86.541,6.0]
[1646024284809,31.89187582,86.598,86.533,24.1354]
[1646024286012,6.0,86.597,86.533,24.1354]
[1646024287615,31.89187582,86.598,86.533,24.1354]
[1646024288216,6.0,86.597,86.533,24.1354]
[1646024288816,6.0,86.597,86.54,17.3358]
[1646024289220,31.89187582,86.598,86.54,17.3358]
[1646024289416,31.89187582,86.598,86.541,6.0]
[1646024290417,6.0,86.597,86.533,24.1354]
[1646024295223,17.3405,86.59,86.533,24.1354]
[1646024295422,10.62,86.589,86.533,24.1354]
[1646024295624,24.2507,86.588,86.533,24.1354]
[1646024295924,6.0,86.587,86.533,24.1354]
[1646024296924,6.0,86.587,86.534,49.26173981]
[1646024297123,24.2507,86.588,86.534,49.26173981]
[1646024297522,24.2507,86.588,86.535,6.0]
[1646024300928,4.62,86.614,86.541,115.6]
[1646024301129,4.62,86.645,86.543,115.6]
[1646024301427,6.0,86.644,86.546,2.44009296]
[1646024301627,6.0,86.644,86.552,2.9965377]
[1646024301830,35.95257722,86.643,86.555,55.60224124]
[1646024302027,6.0,86.642,86.557,2.89814412]
[1646024302226,6.0,86.642,86.56,2.64176779]
[1646024302428,35.95257722,86.643,86.563,3.01135488]
[1646024302626,35.95257722,86.643,86.566,2.67386749]
[1646024302827,35.95257722,86.643,86.57,115.6]
[1646024303030,35.95257722,86.643,86.571,30.0357]
[1646024303628,35.95257722,86.643,86.58,17.3268]
[1646024303829,35.95257722,86.643,86.581,6.0]
[1646024304029,35.95257722,86.643,86.582,43.9291887]
[1646024304228,35.95257722,86.643,86.583,6.0]
[1646024304830,35.95257722,86.643,86.582,6.0]
[1646024308336,6.0,86.642,86.582,6.0]
[1646024308539,35.95257722,86.643,86.59,17.3256]
[1646024308737,35.95257722,86.643,86.591,6.0]
[1646024310140,35.95257722,86.643,86.581,24.9922]
[1646024310843,4.618,86.642,86.582,6.0]
[1646024311343,4.618,86.642,86.581,24.9922]
[1646024311941,17.3303,86.64,86.581,24.9922]
[1646024312141,12.11233874,86.639,86.581,24.9922]
[1646024312344,1.7411173,86.638,86.581,24.9922]
[1646024312643,6.0,86.637,86.581,24.9922]
[1646024312843,6.30086126,86.636,86.542,23.6484]
[1646024313045,9.40262135,86.629,86.543,30.4776]
[1646024313245,7.47208071,86.628,86.543,30.4776]
[1646024313644,1.81553382,86.626,86.543,30.4776]
[1646024313945,1.5192361,86.624,86.543,30.4776]
[1646024314144,10.619,86.623,86.543,30.4776]
[1646024314345,1.59895199,86.622,86.543,30.4776]
[1646024314548,17.3354,86.62,86.543,30.4776]
[1646024316246,4.619,86.619,86.543,30.4776]
[1646024316448,10.619,86.619,86.543,30.4776]
[1646024316647,10.619,86.619,86.543,24.4776]
[1646024316848,17.3365,86.61,86.544,6.0]
[1646024317048,7.369058,86.609,86.543,41.4358]
[1646024317265,35.95257722,86.608,86.543,41.4358]
[1646024317465,6.0,86.607,86.543,41.4358]
[1646024320268,10.62,86.607,86.543,41.4358]
[1646024321267,10.62,86.607,86.543,83.51220696]
[1646024321471,6.0,86.607,86.544,6.0]
[1646024321669,17.3384,86.6,86.52,14.05]
[1646024321869,17.3384,86.6,86.502,4.62]
[1646024321870,12.41676132,86.599,86.521,23.6929]
[1646024322068,1.74468661,86.598,86.521,23.6929]
[1646024322269,10.62,86.597,86.521,23.6929]
[1646024322470,10.62,86.597,86.529,47.32115272]
[1646024322670,2.74678921,86.596,86.529,47.32115272]
[1646024322872,13.78981073,86.595,86.529,47.32115272]
[1646024323169,26.94998921,86.594,86.529,47.32115272]
[1646024323370,6.0,86.593,86.529,47.32115272]
[1646024323571,17.341,86.59,86.529,47.32115272]
[1646024323771,6.0,86.589,86.521,23.6929]
[1646024324978,6.0,86.589,86.524,52.23985459]
[1646024326378,17.341,86.59,86.524,52.23985459]
[1646024327679,6.0,86.589,86.521,23.6929]
[1646024327880,4.62,86.588,86.521,23.6929]
[1646024328080,17.3425,86.58,86.521,23.6929]
[1646024328280,6.0,86.579,86.5,17.343]
[1646024328482,1.42615402,86.578,86.501,28.9031]
[1646024328681,6.0,86.577,86.501,22.9031]
[1646024328879,4.622,86.576,86.501,22.9031]
[1646024329082,6.0,86.575,86.501,22.9031]
[1646024329280,4.622,86.574,86.501,22.9031]
[1646024329480,17.3445,86.57,86.501,22.9031]
[1646024329681,29.0997,86.569,86.501,22.9031]
[1646024330080,29.0997,86.569,86.49,17.3452]
[1646024330081,31.84648921,86.569,86.49,17.3452]
[1646024330283,1.55958911,86.567,86.474,28.6857]
[1646024330482,6.0,86.566,86.474,24.0637]
[1646024330682,8.74678921,86.566,86.475,6.0]
[1646024330882,2.74678921,86.565,86.475,6.0]
[1646024331083,14.06455981,86.564,86.476,55.48414294]
[1646024331383,1.4647171,86.563,86.477,6.0]
[1646024331584,17.3465,86.56,86.48,17.347]
[1646024331782,6.0,86.559,86.481,6.0]
[1646024332181,24.9059,86.558,86.481,6.0]
[1646024332382,6.0,86.557,86.481,6.0]
[1646024332787,2.74678921,86.556,86.481,6.0]
[1646024332986,6.0,86.555,86.481,6.0]
[1646024333488,35.67782814,86.549,86.481,6.0]
[1646024333687,6.0,86.548,86.477,6.0]
[1646024333887,8.74678921,86.548,86.477,6.0]
[1646024334089,8.74678921,86.548,86.475,6.0]
[1646024334290,2.74678921,86.547,86.475,6.0]
[1646024334489,26.36478921,86.547,86.475,6.0]
[1646024334989,2.74678921,86.546,86.475,6.0]
[1646024335989,2.74678921,86.546,86.474,24.0637]
[1646024336189,17.3504,86.54,86.474,24.0637]
[1646024336389,10.623,86.539,86.474,24.0637]
[1646024336693,13.36978921,86.539,86.474,24.0637]
[1646024336889,2.74678921,86.538,86.474,24.0637]
[1646024337091,10.623,86.537,86.474,24.0637]
[1646024337289,32.56535981,86.536,86.474,24.0637]
[1646024337489,17.3523,86.53,86.474,24.0637]
[1646024337692,6.0,86.529,86.474,24.0637]
[1646024338093,8.74678921,86.529,86.474,24.0637]
[1646024338291,2.74678921,86.528,86.474,24.0637]
[1646024338491,6.0,86.527,86.474,24.0637]
[1646024339995,2.74678921,86.526,86.474,24.0637]
[1646024340192,6.0,86.525,86.474,24.0637]
[1646024340595,2.74678921,86.524,86.474,24.0637]
[1646024340793,41.67782814,86.523,86.474,24.0637]
[1646024341093,2.74678921,86.522,86.474,24.0637]
[1646024341292,6.0,86.521,86.474,24.0637]
[1646024341695,2.74678921,86.52,86.474,24.0637]
[1646024341896,6.0,86.519,86.474,24.0637]
[1646024342896,6.0,86.519,86.465,4.623]
[1646024343097,2.74678921,86.518,86.465,4.623]
[1646024343300,10.624,86.517,86.455,24.3714]
[1646024343516,1.61079347,86.516,86.455,24.3714]
[1646024343713,6.0,86.515,86.415,3.02564844]
[1646024343913,6.0,86.515,86.416,30.5385]
[1646024344213,24.13497608,86.514,86.416,30.5385]
[1646024344416,1.82611846,86.512,86.416,30.5385]
[1646024344620,5.04825551,86.509,86.416,30.5385]
[1646024344815,1.60784118,86.506,86.416,30.5385]
[1646024345016,35.67782814,86.489,86.416,30.5385]
[1646024346217,2.74678921,86.488,86.416,30.5385]
[1646024346817,7.37278921,86.488,86.416,30.5385]
[1646024347021,22.5842,86.487,86.416,30.5385]
[1646024347217,25.33098921,86.487,86.416,30.5385]
[1646024347627,2.74678921,86.486,86.416,30.5385]
[1646024352523,2.3012226,86.483,86.416,30.5385]
[1646024353023,2.74678921,86.482,86.421,115.6]
[1646024353223,2.3012226,86.483,86.423,115.6]
[1646024353423,2.3012226,86.483,86.431,115.6]
[1646024353722,2.3012226,86.483,86.433,115.6]
[1646024353921,2.3012226,86.483,86.435,115.6]
[1646024354122,17.759,86.534,86.451,115.5999774]
[1646024354324,17.759,86.534,86.45,14.05]
[1646024354325,6.0,86.533,86.461,115.5999774]
[1646024354524,6.0,86.533,86.462,29.9331]
[1646024355023,29.63578752,86.532,86.463,47.34338612]
[1646024355324,6.0,86.531,86.464,8.52092681]
[1646024356425,6.0,86.531,86.465,115.5999774]
[1646024356624,6.0,86.531,86.466,8.74418694]
[1646024356825,6.0,86.531,86.466,2.74418694]
[1646024357024,6.0,86.531,86.467,6.0]
[1646024357226,6.0,86.531,86.471,115.6]
[1646024357429,29.63578752,86.532,86.473,115.6]
[1646024357627,29.63578752,86.532,86.481,115.6]
[1646024357828,4.624,86.568,86.483,115.6]
[1646024358026,22.8358,86.569,86.485,115.6]
[1646024358226,22.8358,86.569,86.484,33.26527596]
[1646024358227,22.8358,86.569,86.487,115.6]
[1646024358426,22.8358,86.569,86.491,115.6]
[1646024358627,22.8358,86.569,86.501,115.6]
[1646024358829,28.94720399,86.568,86.504,3.0904782]
[1646024359028,28.94720399,86.568,86.506,115.6]
[1646024359229,28.94720399,86.568,86.507,6.0]
[1646024359729,28.94720399,86.568,86.511,53.07262442]
[1646024359931,28.94720399,86.568,86.512,8.89493184]
[1646024360429,28.94720399,86.568,86.513,115.6]
[1646024360630,28.94720399,86.568,86.515,115.6]
[1646024360828,28.94720399,86.568,86.517,115.6]
[1646024361028,28.94720399,86.568,86.519,115.6]
[1646024361231,28.94720399,86.568,86.521,115.6]
[1646024361430,28.94720399,86.568,86.522,6.0]
[1646024362428,28.94720399,86.568,86.521,6.0]
[1646024365834,28.94720399,86.568,86.521,8.83764569]
[1646024367636,28.94720399,86.568,86.521,6.0]
[1646024369666,28.94720399,86.568,86.521,121.6]
[1646024372741,28.94720399,86.568,86.521,176.75351292]
[1646024373342,28.94720399,86.568,86.521,121.6]
[1646024374044,28.94720399,86.568,86.531,115.6]
[1646024374243,24.6015,86.595,86.533,115.6]
[1646024374445,4.62,86.618,86.535,115.6]
[1646024374644,29.4616,86.618,86.537,115.6]
[1646024374843,29.4616,86.618,86.536,8.86925272]
[1646024374844,24.8416,86.618,86.539,115.6]
[1646024375043,24.8416,86.618,86.541,115.6]
[1646024375244,33.64742083,86.617,86.551,115.6]
[1646024375447,33.64742083,86.617,86.552,28.809]
[1646024376248,33.64742083,86.617,86.561,115.6]
[1646024376448,33.64742083,86.617,86.562,60.31323211]
[1646024376747,33.64742083,86.617,86.563,2.26307405]
[1646024376947,33.64742083,86.617,86.564,10.619]
[1646024377355,33.64742083,86.617,86.565,115.6]
[1646024377561,33.64742083,86.617,86.566,6.0]
[1646024377751,33.64742083,86.617,86.571,115.6]
[1646024377952,33.64742083,86.617,86.572,6.0]
[1646024378552,4.619,86.647,86.572,6.0]
[1646024378750,4.619,86.647,86.564,4.619]
[1646024378751,4.619,86.647,86.571,115.6]
[1646024378949,2.74678921,86.648,86.574,115.6]
[1646024379151,2.74678921,86.648,86.576,115.6]
[1646024379350,2.74678921,86.648,86.578,115.6]
[1646024379553,29.6450784,86.647,86.58,132.9271]
[1646024379755,29.6450784,86.647,86.582,115.6]
[1646024379953,29.6450784,86.647,86.583,6.0]
[1646024380653,29.6450784,86.647,86.584,115.6]
[1646024380853,29.6450784,86.647,86.58,17.3271]
[1646024380854,29.6450784,86.647,86.585,6.0]
[1646024381456,29.6450784,86.647,86.581,6.0]
[1646024381656,2.74678921,86.646,86.581,6.0]
[1646024382256,29.6450784,86.647,86.59,17.3247]
[1646024382456,29.6450784,86.647,86.591,6.0]
[1646024383855,0.71047847,86.646,86.591,6.0]
[1646024385686,2.74678921,86.645,86.591,6.0]
[1646024385883,2.74678921,86.645,86.583,6.0]
[1646024388585,2.74678921,86.645,86.582,23.8557]
[1646024389285,0.71011233,86.644,86.582,23.8557]
[1646024389687,2.74678921,86.643,86.583,6.0]
[1646024389886,2.74678921,86.643,86.582,23.8557]
[1646024390086,10.618,86.642,86.582,23.8557]
[1646024390286,1.52143664,86.641,86.573,24.0371]
[1646024390588,1.8196922,86.639,86.573,24.0371]
[1646024390791,1.46493034,86.637,86.573,24.0371]
[1646024390987,1.71216316,86.635,86.573,24.0371]
[1646024391187,11.31117793,86.633,86.573,24.0371]
[1646024391389,1.6602005,86.631,86.573,24.0371]
[1646024391588,4.618,86.63,86.573,24.0371]
[1646024391987,2.74678921,86.629,86.573,24.0371]
[1646024392187,6.0,86.628,86.561,22.6976]
[1646024392589,2.74678921,86.627,86.561,22.6976]
[1646024393189,1.63557388,86.625,86.561,22.6976]
[1646024393390,4.619,86.624,86.561,22.6976]
[1646024393588,31.01444069,86.619,86.561,22.6976]
[1646024393788,1.47696581,86.618,86.561,22.6976]
[1646024395091,4.619,86.617,86.561,22.6976]
[1646024395491,7.44088975,86.616,86.561,22.6976]
[1646024395690,4.619,86.615,86.561,22.6976]
[1646024395894,6.21936818,86.615,86.561,22.6976]
[1646024396091,1.60036818,86.615,86.561,22.6976]
[1646024396494,1.60036818,86.615,86.54,17.335]
[1646024396791,2.74678921,86.614,86.541,28.7839]
[1646024396990,17.3366,86.61,86.541,28.7839]
[1646024397190,10.62,86.609,86.541,28.7839]
[1646024397391,1.69953487,86.608,86.541,22.7839]
[1646024397591,1.52390804,86.606,86.541,22.7839]
[1646024397790,9.47430955,86.604,86.541,22.7839]
[1646024397990,6.1071716,86.603,86.541,22.7839]
[1646024398190,17.3383,86.6,86.53,17.337]
[1646024398392,1.68516466,86.598,86.511,23.2674]
[1646024398594,1.57722634,86.596,86.512,6.0]
[1646024398790,1.53677873,86.594,86.512,6.0]
[1646024398992,1.56493238,86.592,86.512,6.0]
[1646024399191,29.6450784,86.59,86.512,6.0]
[1646024399591,1.38102142,86.589,86.52,17.3391]
[1646024399791,6.0,86.588,86.521,6.0]
[1646024400394,6.26133094,86.587,86.511,23.2674]
[1646024400592,7.51901158,86.586,86.511,23.2674]
[1646024400794,6.0006778,86.585,86.511,23.2674]
[1646024401095,7.84218175,86.584,86.511,23.2674]
[1646024401293,1.80120694,86.582,86.512,6.0]
[1646024401494,17.3424,86.58,86.512,6.0]
[1646024401793,7.39274068,86.579,86.512,6.0]
[1646024402093,9.47430955,86.577,86.512,6.0]
[1646024402296,10.84379023,86.577,86.512,6.0]
[1646024402592,10.84379023,86.577,86.511,23.2674]
[1646024403496,8.74678921,86.576,86.511,23.2674]
[1646024403696,1.64190081,86.569,86.511,23.2674]
[1646024403893,6.26390081,86.569,86.511,23.2674]
[1646024404494,1.64190081,86.569,86.511,23.2674]
[1646024405895,1.64190081,86.569,86.512,6.0]
[1646024406395,1.64190081,86.569,86.511,23.2674]
[1646024407195,1.64190081,86.569,86.49,17.3451]
[1646024407395,1.6607555,86.559,86.46,115.6]
[1646024407596,1.81009537,86.557,86.466,58.88523284]
[1646024407795,1.81009537,86.557,86.467,10.623]
[1646024407796,4.623,86.556,86.467,10.623]
[1646024408195,6.0,86.555,86.468,24.9211]
[1646024408397,4.623,86.554,86.469,6.0]
[1646024408596,115.6,86.549,86.469,6.0]
[1646024408799,6.0,86.553,86.469,6.0]
[1646024408800,115.6,86.547,86.469,6.0]
[1646024408997,2.74678921,86.553,86.46,17.351]
[1646024408998,11.04599519,86.545,86.46,17.351]
[1646024409197,1.56126818,86.543,86.446,4.623]
[1646024409396,1.69153505,86.54,86.447,6.0]
[1646024409597,1.69153505,86.54,86.431,4.624]
[1646024409598,115.6,86.538,86.431,4.624]
[1646024409798,1.45299316,86.535,86.43,23.393]
[1646024409998,1.7282969,86.532,86.431,6.0]
[1646024410298,115.6,86.528,86.43,23.393]
[1646024410498,115.6,86.526,86.43,23.393]
[1646024410698,17.3597,86.51,86.43,23.393]
[1646024410901,34.00220955,86.509,86.431,6.0]
[1646024411599,6.0,86.508,86.43,17.3567]
[1646024411799,4.625,86.507,86.43,17.3567]
[1646024411998,6.0,86.506,86.431,6.0]
[1646024412399,8.74678921,86.506,86.431,6.0]
[1646024412599,17.3584,86.5,86.431,6.0]
[1646024412798,30.9629,86.499,86.431,6.0]
[1646024413500,30.9629,86.499,86.43,17.3567]
[1646024413698,6.0212204,86.498,86.426,22.5276]
[1646024413902,17.3608,86.49,86.427,6.0]
[1646024414099,6.0,86.489,86.427,6.0]
[1646024414499,29.6450784,86.488,86.427,6.0]
[1646024414701,1.73479525,86.487,86.427,6.0]
[1646024414900,6.0,86.486,86.427,6.0]
[1646024415100,6.0,86.486,86.391,2.80657641]
[1646024415101,17.3624,86.48,86.391,2.80657641]
[1646024415300,12.00969021,86.479,86.397,6.0]
[1646024415499,1.36972099,86.478,86.374,43.14199745]
[1646024415700,115.6,86.476,86.371,49.5876]
[1646024416003,1.7327656,86.474,86.371,49.0876]
[1646024416202,117.21287801,86.472,86.371,49.0876]
[1646024416410,1.81010715,86.459,86.371,49.0876]
[1646024416601,1.52650645,86.456,86.35,14.05]
[1646024416900,33.6089,86.458,86.337,2.78624748]
[1646024416901,1.70503832,86.453,86.34,129.65]
[1646024417100,115.6,86.451,86.34,115.6]
[1646024417300,12.13284898,86.45,86.346,6.0]
[1646024417500,1.64169196,86.449,86.346,6.0]
[1646024417702,1.4019257,86.447,86.346,6.0]
[1646024418000,28.57559135,86.445,86.346,6.0]
[1646024418200,12.41705762,86.444,86.346,6.0]
[1646024418400,1.44231312,86.442,86.337,46.9348]
[1646024418600,115.6,86.439,86.337,46.9348]
[1646024418800,115.6,86.437,86.337,46.9348]
[1646024419003,115.6,86.435,86.314,2.74678921]
[1646024419200,115.6,86.433,86.314,2.74678921]
[1646024419403,115.6,86.429,86.314,2.74678921]
[1646024419602,115.6,86.427,86.311,46.8432]
[1646024419801,115.6,86.425,86.3,17.3773]
[1646024420003,17.3855,86.37,86.285,24.1852]
[1646024420206,1.69046212,86.389,86.285,24.1852]
[1646024420402,2.74678921,86.369,86.285,24.1852]
[1646024420601,6.0,86.368,86.285,24.1852]
[1646024420803,26.8923668,86.367,86.286,44.89226812]
[1646024421004,29.63915601,86.367,86.286,47.48438792]
[1646024421306,29.63915601,86.367,86.287,3.09953589]
[1646024421511,26.8923668,86.367,86.29,14.05]
[1646024421704,26.8923668,86.367,86.291,6.0]
[1646024421904,26.8923668,86.367,86.291,38.10291194]
[1646024422105,26.8923668,86.367,86.292,143.43660316]
[1646024422303,26.8923668,86.367,86.295,2.57563301]
[1646024422504,26.8923668,86.367,86.296,6.0]
[1646024422903,26.8923668,86.367,86.3,14.05]
[1646024423104,26.8923668,86.367,86.302,54.82444211]
[1646024423305,26.8923668,86.367,86.303,13.51300688]
[1646024424004,26.8923668,86.367,86.304,25.15556154]
[1646024424207,26.8923668,86.367,86.305,8.43599022]
[1646024424405,26.8923668,86.367,86.306,6.0]
[1646024425004,26.8923668,86.367,86.307,2.74678921]
[1646024425205,26.8923668,86.367,86.308,6.0]
[1646024425606,26.8923668,86.367,86.308,13.37878921]
[1646024425805,26.8923668,86.367,86.308,8.74678921]
[1646024426405,26.8923668,86.367,86.309,4.632]
[1646024426607,24.4846,86.407,86.31,6.0]
[1646024426806,24.4846,86.407,86.312,2.81763859]
[1646024427004,24.4846,86.407,86.313,10.631]
[1646024427606,33.08718258,86.406,86.313,10.631]